Workbook

Sheet Disclaimer
B2: Disclaimer
C5: This financial model (“Model”) has been prepared by Infratil Limited (NZ company number 597366, NZX:IFT; ASX:IFT) (“Infratil”). Each person who accesses this Model is referred to in this disclaimer as “Recipient”. By accessing this Model, each Recipient agrees to be bound at all times by the terms of this disclaimer set out below. The Model has been prepared in good faith for information purposes only and provided on a non-reliance basis. It is not intended to be and should not be relied upon as advice to investors or potential investors and does not take into account the investment objectives, financial situation or needs of any particular investor. These should be considered, with or without professional advice, before taking any action in respect of an investment in Infratil. The information in this Model does not purport to be complete nor does it contain or contemplate all information which an investor or a prospective investor may require or consider necessary in evaluating a decision regarding an investment in Infratil. The Model does not constitute any financial, tax, legal, investment or other advice, or any recommendation, offer or invitation to acquire or dispose of Infratil’s securities, and has been prepared without taking into account the objectives, financial situation, and needs of or implications for any Recipient. Recipients must not place undue reliance on the Model or its contents and must conduct their own investigation and analysis of (i) Infratil, (ii) any Infratil portfolio company that is the subject of this Model, including its respective assets and business (“Portfolio Company”), and (iii) the information contained in the Model. Past performance information provided in the Model may not be a reliable indication of future performance. Furthermore, information about the financial and forecast performance of Infratil and any Portfolio Company may be presented in the Model in a different way from that which appears in the audited or unaudited financial statements from which it is derived. This may (but need not) result from historical financial information being “adjusted” for the purposes of the Model. The Model contains certain forward-looking information relating to Infratil and any Portfolio Company, such as quantitative and qualitative forecasts, projections, estimates, statements and opinions concerning the anticipated future performance and financial condition of Infratil and/or any Portfolio Company. None of these forecasts, projections, estimates, statements and opinions are, or will be, guarantees, representations or warranties, express or implied, as to future matters or circumstances. Forward-looking information is inherently uncertain and subject to contingencies outside of Infratil’s or the Portfolio Company’s control, and which may cause the actual results or performance of Infratil or the Portfolio Company to be materially different from any results or performance expressed or implied by such forward-looking statement. Infratil gives no representation, warranty or assurance that actual outcomes or performance will not materially differ from the forward-looking statements expressed or implied. Information included in this Model, including any forward-looking information, speaks only as of the date of this Model. Future events or subsequent developments may affect the information in this Model, and, except as required by law, or the rules of any relevant securities exchange or listing authority, Infratil is under no obligation to update, revise, reaffirm or supplement any views or information set out in this Model. To the maximum extent permitted by law, Infratil, the Portfolio Company and their respective affiliates, and each of their respective directors, officers, partners, employees and agents (each a “Relevant Person”) accept no responsibility to inform or notify a Recipient of any matter which may affect any matter referred to in this Model (including, but not limited to, any error or omission which may become apparent after the date of this Model). Without prejudice to the foregoing, if Infratil provides any further information to supplement this Model, whether by way of update or otherwise, to Recipients after the date of this Model, the terms and conditions applying to this Model will apply to such further information. This Model shall not be deemed an indication of the state of affairs of Infratil or any Portfolio Company nor shall it constitute an indication that there has been or will be no change in Infratil or any Portfolio Company since the date of this Model or since any other date at which any information contained herein is expressed to be stated. No representation, warranty or undertaking, express or implied, of any nature is made in relation to the accuracy, completeness or correctness of the information contained in this Model. To the maximum extent permitted by law, no Relevant Person will be liable (whether in tort (including negligence) or otherwise) to any person in relation to this Model.

Sheet Contents
B2: Illustrative Renewables Valuation Model
B3: Cover
B5: Contents | G5: Technical inputs | N5: Legend
C7: Model Name | H7: Days in year | J7: 365.25 | K7: <Days_yr> | N7: Divider 1 | P7: Divider 1
D8: Illustrative Renewables Valuation Model | H8: Days in week | J8: 7 | K8: <Days_wk>
H9: Quarters in year | J9: 4 | K9: <Quarters_yr> | N9: Divider 2 | P9: Divider 2
C10: Contents>> | H10: Months in year | J10: 12 | K10: <Months_yr>
D11: Renewables Platform | H11: Months in quarter | J11: 3 | K11: <Months_qtr> | N11: Divider 3 | P11: Divider 3
D12: US Tax Equity Example | H12: Hours per day | J12: 24 | K12: <Hrs_day>
H13: Financial year month | J13: 3 | K13: <FY_month> | N13: User Input | P13: User Input
H14: Thousands | J14: 1000 | K14: <Thousand>
H15: Millions | J15: 1000000 | K15: <Million> | N15: Table Header | P15: Table Header
H16: Rounding error | J16: 0.05 | K16: <Rounding_error>
H17: Zero | J17: 0 | K17: <Zero> | N17: Explanatory note | P17: Explanatory Note
H18: One | J18: 1 | K18: <One>
H19: Two | J19: 2 | K19: <Two> | N19: Calculation | P19: Calculation
H20: Three | J20: 3 | K20: <Three>
H21: Four | J21: 4 | K21: <Four> | N21: Check OK | P21: 0
H22: Ten | J22: 10 | K22: <Ten>
H23: Twenty | J23: 20 | K23: <Twenty> | N23: Check Not OK | P23: 1
H24: Quarter | J24: 0.25 | K24: <Quarter>
H25: Half | J25: 0.5 | K25: <Half> | N25: Modelling Input | P25: Modelling Input
H26: One hundred thousand | J26: 100000 | K26: <Hundred_k>
N27: Do not override
G28: Checks
N29: End of sheet | P29: END OF SHEET
H30: Model status checks
H32: [spare] | K32: 0
H33: [spare] | K33: 0
H34: Model status | K34: =SUM(K31:K33) -> 0

Sheet Renewables Platform Valuation
B2: Illustrative Renewables Platform Example
B4: Equity value ($m) | G4: =K78 -> 3717.5 | K4: Period Start | L4: 2026-01-01 | M4: =L5+1 -> 2027-01-01 | N4: =M5+1 -> 2028-01-01 | O4: 2029-01-01 | P4: 2030-01-01 | Q4: 2031-01-01 | R4: 2032-01-01 | S4: 2033-01-01 | T4: 2034-01-01 | U4: 2035-01-01 | V4: 2036-01-01 | W4: 2037-01-01 | X4: 2038-01-01 | Y4: 2039-01-01 | Z4: 2040-01-01
K5: Period End | L5: =EOMONTH('Renewables Platform Valuation'!L4,12 -1) -> 2026-12-31 | M5: =EOMONTH('Renewables Platform Valuation'!M4,12 -1) -> 2027-12-31 | N5: =EOMONTH('Renewables Platform Valuation'!N4,12 -1) -> 2028-12-31 | O5: =EOMONTH('Renewables Platform Valuation'!O4,12 -1) -> 2029-12-31 | P5: =EOMONTH('Renewables Platform Valuation'!P4,12 -1) -> 2030-12-31 | Q5: =EOMONTH('Renewables Platform Valuation'!Q4,12 -1) -> 2031-12-31 | R5: =EOMONTH('Renewables Platform Valuation'!R4,12 -1) -> 2032-12-31 | S5: =EOMONTH('Renewables Platform Valuation'!S4,12 -1) -> 2033-12-31 | T5: =EOMONTH('Renewables Platform Valuation'!T4,12 -1) -> 2034-12-31 | U5: =EOMONTH('Renewables Platform Valuation'!U4,12 -1) -> 2035-12-31 | V5: =EOMONTH('Renewables Platform Valuation'!V4,12 -1) -> 2036-12-31 | W5: =EOMONTH('Renewables Platform Valuation'!W4,12 -1) -> 2037-12-31 | X5: =EOMONTH('Renewables Platform Valuation'!X4,12 -1) -> 2038-12-31 | Y5: =EOMONTH('Renewables Platform Valuation'!Y4,12 -1) -> 2039-12-31 | Z5: =EOMONTH('Renewables Platform Valuation'!Z4,12 -1) -> 2040-12-31
K6: Financial year | L6: =YEAR(L5) -> 2026 | M6: =YEAR(M5) -> 2027 | N6: 2028 | O6: 2029 | P6: 2030 | Q6: 2031 | R6: 2032 | S6: 2033 | T6: 2034 | U6: 2035 | V6: 2036 | W6: 2037 | X6: 2038 | Y6: 2039 | Z6: 2040
K7: Period | L7: 1 | M7: =L7+1 -> 2 | N7: =M7+1 -> 3 | O7: 4 | P7: 5 | Q7: 6 | R7: 7 | S7: 8 | T7: 9 | U7: 10 | V7: 11 | W7: 12 | X7: 13 | Y7: 14 | Z7: 15
B9: Valuation Model
B11: =Header_Number -> 1 | C11: Portfolio
D13: Assets brought to FNTP p.a. | G13: MW | H13: Under construction | I13: 2000 | K13: =K14 -> 2000 | L13: =YEARFRAC(L5,M5)*$I14 -> 1500 | M13: 1500 | N13: 1500 | O13: 1500 | P13: 1500 | Q13: 1500 | R13: 1500 | S13: 1500 | T13: 1500 | U13: 1500 | V13: 1500 | W13: 1500 | X13: 1500 | Y13: 1500
D14: Assets under-construction | G14: MW | H14: Future cadence | I14: 1500 | K14: =I13 -> 2000 | L14: =K14*0.5+L13 -> 2500 | M14: =L14*0.5+M13 -> 2750 | N14: 2875 | O14: 2937.5 | P14: 2968.75 | Q14: 2984.375 | R14: 2992.1875 | S14: 2996.09375 | T14: 2998.046875 | U14: 2999.023438 | V14: 2999.511719 | W14: 2999.755859 | X14: 2999.87793 | Y14: 2999.938965
D16: Assets under-construction | H16: MW: | I16: Build time (m)
E17: =TRANSPOSE(L5:Z5) -> 2026-12-31 | G17: MW | H17: =TRANSPOSE(K13:Y13) -> 2000 | I17: 12 | K17: =MAX((1-YEARFRAC(L$5,$E17)),0)*--(L$5>=$E17)*$H17 -> 2000 | L17: 0 | M17: 0 | N17: 0 | O17: 0 | P17: 0 | Q17: 0 | R17: 0 | S17: 0 | T17: 0 | U17: 0 | V17: 0 | W17: 0 | X17: 0 | Y17: 0
E18: 2027-12-31 | G18: MW | H18: 1500 | K18: =MAX((1-YEARFRAC(L$5,$E18)),0)*--(L$5>=$E18)*$H18 -> 0 | L18: 1500 | M18: 0 | N18: 0 | O18: 0 | P18: 0 | Q18: 0 | R18: 0 | S18: 0 | T18: 0 | U18: 0 | V18: 0 | W18: 0 | X18: 0 | Y18: 0
E19: 2028-12-31 | G19: MW | H19: 1500 | K19: =MAX((1-YEARFRAC(L$5,$E19)),0)*--(L$5>=$E19)*$H19 -> 0 | L19: 0 | M19: 1500 | N19: 0 | O19: 0 | P19: 0 | Q19: 0 | R19: 0 | S19: 0 | T19: 0 | U19: 0 | V19: 0 | W19: 0 | X19: 0 | Y19: 0
E20: 2029-12-31 | G20: MW | H20: 1500 | K20: =MAX((1-YEARFRAC(L$5,$E20)),0)*--(L$5>=$E20)*$H20 -> 0 | L20: 0 | M20: 0 | N20: 1500 | O20: 0 | P20: 0 | Q20: 0 | R20: 0 | S20: 0 | T20: 0 | U20: 0 | V20: 0 | W20: 0 | X20: 0 | Y20: 0
E21: 2030-12-31 | G21: MW | H21: 1500 | K21: =MAX((1-YEARFRAC(L$5,$E21)),0)*--(L$5>=$E21)*$H21 -> 0 | L21: 0 | M21: 0 | N21: 0 | O21: 1500 | P21: 0 | Q21: 0 | R21: 0 | S21: 0 | T21: 0 | U21: 0 | V21: 0 | W21: 0 | X21: 0 | Y21: 0
E22: 2031-12-31 | G22: MW | H22: 1500 | K22: =MAX((1-YEARFRAC(L$5,$E22)),0)*--(L$5>=$E22)*$H22 -> 0 | L22: 0 | M22: 0 | N22: 0 | O22: 0 | P22: 1500 | Q22: 0 | R22: 0 | S22: 0 | T22: 0 | U22: 0 | V22: 0 | W22: 0 | X22: 0 | Y22: 0
E23: 2032-12-31 | G23: MW | H23: 1500 | K23: =MAX((1-YEARFRAC(L$5,$E23)),0)*--(L$5>=$E23)*$H23 -> 0 | L23: 0 | M23: 0 | N23: 0 | O23: 0 | P23: 0 | Q23: 1500 | R23: 0 | S23: 0 | T23: 0 | U23: 0 | V23: 0 | W23: 0 | X23: 0 | Y23: 0
E24: 2033-12-31 | G24: MW | H24: 1500 | K24: =MAX((1-YEARFRAC(L$5,$E24)),0)*--(L$5>=$E24)*$H24 -> 0 | L24: 0 | M24: 0 | N24: 0 | O24: 0 | P24: 0 | Q24: 0 | R24: 1500 | S24: 0 | T24: 0 | U24: 0 | V24: 0 | W24: 0 | X24: 0 | Y24: 0
E25: 2034-12-31 | G25: MW | H25: 1500 | K25: =MAX((1-YEARFRAC(L$5,$E25)),0)*--(L$5>=$E25)*$H25 -> 0 | L25: 0 | M25: 0 | N25: 0 | O25: 0 | P25: 0 | Q25: 0 | R25: 0 | S25: 1500 | T25: 0 | U25: 0 | V25: 0 | W25: 0 | X25: 0 | Y25: 0
E26: 2035-12-31 | G26: MW | H26: 1500 | K26: =MAX((1-YEARFRAC(L$5,$E26)),0)*--(L$5>=$E26)*$H26 -> 0 | L26: 0 | M26: 0 | N26: 0 | O26: 0 | P26: 0 | Q26: 0 | R26: 0 | S26: 0 | T26: 1500 | U26: 0 | V26: 0 | W26: 0 | X26: 0 | Y26: 0
E27: 2036-12-31 | G27: MW | H27: 1500 | K27: =MAX((1-YEARFRAC(L$5,$E27)),0)*--(L$5>=$E27)*$H27 -> 0 | L27: 0 | M27: 0 | N27: 0 | O27: 0 | P27: 0 | Q27: 0 | R27: 0 | S27: 0 | T27: 0 | U27: 1500 | V27: 0 | W27: 0 | X27: 0 | Y27: 0
E28: 2037-12-31 | G28: MW | H28: 1500 | K28: =MAX((1-YEARFRAC(L$5,$E28)),0)*--(L$5>=$E28)*$H28 -> 0 | L28: 0 | M28: 0 | N28: 0 | O28: 0 | P28: 0 | Q28: 0 | R28: 0 | S28: 0 | T28: 0 | U28: 0 | V28: 1500 | W28: 0 | X28: 0 | Y28: 0
E29: 2038-12-31 | G29: MW | H29: 1500 | K29: =MAX((1-YEARFRAC(L$5,$E29)),0)*--(L$5>=$E29)*$H29 -> 0 | L29: 0 | M29: 0 | N29: 0 | O29: 0 | P29: 0 | Q29: 0 | R29: 0 | S29: 0 | T29: 0 | U29: 0 | V29: 0 | W29: 1500 | X29: 0 | Y29: 0
E30: 2039-12-31 | G30: MW | H30: 1500 | K30: =MAX((1-YEARFRAC(L$5,$E30)),0)*--(L$5>=$E30)*$H30 -> 0 | L30: 0 | M30: 0 | N30: 0 | O30: 0 | P30: 0 | Q30: 0 | R30: 0 | S30: 0 | T30: 0 | U30: 0 | V30: 0 | W30: 0 | X30: 1500 | Y30: 0
E31: 2040-12-31 | G31: MW | H31: 1500 | K31: =MAX((1-YEARFRAC(L$5,$E31)),0)*--(L$5>=$E31)*$H31 -> 0 | L31: 0 | M31: 0 | N31: 0 | O31: 0 | P31: 0 | Q31: 0 | R31: 0 | S31: 0 | T31: 0 | U31: 0 | V31: 0 | W31: 0 | X31: 0 | Y31: 1500
D32: Assets achieving COD | G32: MW | L32: =-SUMIFS(L17:L31,_xlfn.ANCHORARRAY($E17),"<"&#REF!)+SUM(K17:K31) -> 2000 | M32: =-SUMIFS(M17:M31,_xlfn.ANCHORARRAY($E17),"<"&#REF!)+SUM(L17:L31) -> 1500 | N32: =-SUMIFS(N17:N31,_xlfn.ANCHORARRAY($E17),"<"&#REF!)+SUM(M17:M31) -> 1500 | O32: =-SUMIFS(O17:O31,_xlfn.ANCHORARRAY($E17),"<"&#REF!)+SUM(N17:N31) -> 1500 | P32: =-SUMIFS(P17:P31,_xlfn.ANCHORARRAY($E17),"<"&#REF!)+SUM(O17:O31) -> 1500 | Q32: =-SUMIFS(Q17:Q31,_xlfn.ANCHORARRAY($E17),"<"&#REF!)+SUM(P17:P31) -> 1500 | R32: =-SUMIFS(R17:R31,_xlfn.ANCHORARRAY($E17),"<"&#REF!)+SUM(Q17:Q31) -> 1500 | S32: =-SUMIFS(S17:S31,_xlfn.ANCHORARRAY($E17),"<"&#REF!)+SUM(R17:R31) -> 1500 | T32: =-SUMIFS(T17:T31,_xlfn.ANCHORARRAY($E17),"<"&#REF!)+SUM(S17:S31) -> 1500 | U32: =-SUMIFS(U17:U31,_xlfn.ANCHORARRAY($E17),"<"&#REF!)+SUM(T17:T31) -> 1500 | V32: =-SUMIFS(V17:V31,_xlfn.ANCHORARRAY($E17),"<"&#REF!)+SUM(U17:U31) -> 1500 | W32: =-SUMIFS(W17:W31,_xlfn.ANCHORARRAY($E17),"<"&#REF!)+SUM(V17:V31) -> 1500 | X32: =-SUMIFS(X17:X31,_xlfn.ANCHORARRAY($E17),"<"&#REF!)+SUM(W17:W31) -> 1500 | Y32: =-SUMIFS(Y17:Y31,_xlfn.ANCHORARRAY($E17),"<"&#REF!)+SUM(X17:X31) -> 1500
D34: Assets under construction (time-series) | G34: MW | K34: =SUM(K17:K31) -> 2000 | L34: =SUM(L17:L31) -> 1500 | M34: 1500 | N34: 1500 | O34: 1500 | P34: 1500 | Q34: 1500 | R34: 1500 | S34: 1500 | T34: 1500 | U34: 1500 | V34: 1500 | W34: 1500 | X34: 1500 | Y34: 1500
D36: Operating assets | G36: MW | K36: 3500 | L36: =K36+L32 -> 5500 | M36: 7000 | N36: 8500 | O36: 10000 | P36: 11500 | Q36: 13000 | R36: 14500 | S36: 16000 | T36: 17500 | U36: 19000 | V36: 20500 | W36: 22000 | X36: 23500 | Y36: 25000
D37: Under-construction assets | G37: MW | K37: =K34 -> 2000 | L37: 1500 | M37: 1500 | N37: 1500 | O37: 1500 | P37: 1500 | Q37: 1500 | R37: 1500 | S37: 1500 | T37: 1500 | U37: 1500 | V37: 1500 | W37: 1500 | X37: 1500 | Y37: 1500
D38: Total OpCo MW | G38: MW | K38: =SUM(K36:K37) -> 5500 | L38: =SUM(L36:L37) -> 7000 | M38: 8500 | N38: 10000 | O38: 11500 | P38: 13000 | Q38: 14500 | R38: 16000 | S38: 17500 | T38: 19000 | U38: 20500 | V38: 22000 | W38: 23500 | X38: 25000 | Y38: 26500
B40: =Header_Number -> 2 | C40: OpCo
H42: 2027 GW | I42: 2027 EBITDA | J42: $k/MW EBITDA
D43: Operating assets | G43: $'000 | H43: 8.5 | I43: =H43*70 -> 595 | J43: =IFERROR(I43/H43,0) -> 70 | K43: =K36*$J43 -> 245000 | L43: 385000 | M43: 490000 | N43: 595000 | O43: 700000 | P43: 805000 | Q43: 910000 | R43: 1015000 | S43: 1120000 | T43: 1225000 | U43: 1330000 | V43: 1435000 | W43: 1540000 | X43: 1645000 | Y43: 1750000
D44: Under-construction assets | G44: $'000 | K44: =K37*$J43 -> 140000 | L44: 105000 | M44: 105000 | N44: 105000 | O44: 105000 | P44: 105000 | Q44: 105000 | R44: 105000 | S44: 105000 | T44: 105000 | U44: 105000 | V44: 105000 | W44: 105000 | X44: 105000 | Y44: 105000
D45: Total OpCo Run-Rate EBITDA | G45: $'000 | K45: =SUM(K43:K44) -> 385000 | L45: =SUM(L43:L44) -> 490000 | M45: 595000 | N45: 700000 | O45: 805000 | P45: 910000 | Q45: 1015000 | R45: 1120000 | S45: 1225000 | T45: 1330000 | U45: 1435000 | V45: 1540000 | W45: 1645000 | X45: 1750000 | Y45: 1855000
D47: Enterprise value | G47: $m | H47: EV/EBITDA
D48: Value of operating assets | G48: $m | H48: 13 | K48: =K43*$H48/10^3 -> 3185 | L48: 5005 | M48: 6370 | N48: 7735 | O48: 9100 | P48: 10465 | Q48: 11830 | R48: 13195 | S48: 14560 | T48: 15925 | U48: 17290 | V48: 18655 | W48: 20020 | X48: 21385 | Y48: 22750
D49: Value of under-construction assets | G49: $m | H49: 13 | K49: =K44*$H49/10^3 -> 1820 | L49: =L44*$H49/10^3 -> 1365 | M49: 1365 | N49: 1365 | O49: 1365 | P49: 1365 | Q49: 1365 | R49: 1365 | S49: 1365 | T49: 1365 | U49: 1365 | V49: 1365 | W49: 1365 | X49: 1365 | Y49: 1365
D50: Total Enterprise value of OpCo | G50: $m | K50: =SUM(K48:K49) -> 5005 | L50: =SUM(L48:L49) -> 6370 | M50: 7735 | N50: 9100 | O50: 10465 | P50: 11830 | Q50: 13195 | R50: 14560 | S50: 15925 | T50: 17290 | U50: 18655 | V50: 20020 | W50: 21385 | X50: 22750 | Y50: 24115
D52: Debt | G52: $m | H52: $k/MW
D53: =D43 -> Operating assets | G53: $m | H53: 575 | K53: =K36*$H53/10^3 -> 2012.5 | L53: 3162.5 | M53: 4025 | N53: 4887.5 | O53: 5750 | P53: 6612.5 | Q53: 7475 | R53: 8337.5 | S53: 9200 | T53: 10062.5 | U53: 10925 | V53: 11787.5 | W53: 12650 | X53: 13512.5 | Y53: 14375
D54: =D44 -> Under-construction assets | G54: $m | K54: =K37*$H53/10^3 -> 1150 | L54: 862.5 | M54: 862.5 | N54: 862.5 | O54: 862.5 | P54: 862.5 | Q54: 862.5 | R54: 862.5 | S54: 862.5 | T54: 862.5 | U54: 862.5 | V54: 862.5 | W54: 862.5 | X54: 862.5 | Y54: 862.5
D55: Total debt value of OpCp | G55: $m | K55: =SUM(K53:K54) -> 3162.5 | L55: =SUM(L53:L54) -> 4025 | M55: 4887.5 | N55: 5750 | O55: 6612.5 | P55: 7475 | Q55: 8337.5 | R55: 9200 | S55: 10062.5 | T55: 10925 | U55: 11787.5 | V55: 12650 | W55: 13512.5 | X55: 14375 | Y55: 15237.5
D57: Equity value | G57: $m
D58: =D53:D54 -> Operating assets | G58: $m | K58: =K48-K53 -> 1172.5 | L58: =L48-L53 -> 1842.5 | M58: 2345 | N58: 2847.5 | O58: 3350 | P58: 3852.5 | Q58: 4355 | R58: 4857.5 | S58: 5360 | T58: 5862.5 | U58: 6365 | V58: 6867.5 | W58: 7370 | X58: 7872.5 | Y58: 8375
D59: Under-construction assets | G59: $m | K59: =K49-K54 -> 670 | L59: 502.5 | M59: 502.5 | N59: 502.5 | O59: 502.5 | P59: 502.5 | Q59: 502.5 | R59: 502.5 | S59: 502.5 | T59: 502.5 | U59: 502.5 | V59: 502.5 | W59: 502.5 | X59: 502.5 | Y59: 502.5
D60: Equity value of OpCo | G60: $m | K60: =SUM(K58:K59) -> 1842.5 | L60: =SUM(L58:L59) -> 2345 | M60: 2847.5 | N60: 3350 | O60: 3852.5 | P60: 4355 | Q60: 4857.5 | R60: 5360 | S60: 5862.5 | T60: 6365 | U60: 6867.5 | V60: 7370 | W60: 7872.5 | X60: 8375 | Y60: 8877.5
B62: =Header_Number -> 3 | C62: DevCo
D64: Cadence - assets being brought to FNTP | G64: MW | L64: =L13 -> 1500 | M64: 1500 | N64: 1500 | O64: 1500 | P64: 1500 | Q64: 1500 | R64: 1500 | S64: 1500 | T64: 1500 | U64: 1500 | V64: 1500 | W64: 1500 | X64: 1500 | Y64: 1500
D66: DevCo value at FNTP | G66: $m | H66: $k/MW net margin | I66: Overheads ($/p.a.) | J66: % growth | L66: =L64*$H67/1000 -> 375 | M66: 375 | N66: 375 | O66: 375 | P66: 375 | Q66: 375 | R66: 375 | S66: 375 | T66: 375 | U66: 375 | V66: 375 | W66: 375 | X66: 375 | Y66: 375
D67: Less: Overheads | G67: $m | H67: 250 | I67: 0 | J67: 0 | L67: =-$I67*YEARFRAC(L5,M5)*(1+$J67)^YEARFRAC($L5,M5) -> 0 | M67: 0 | N67: 0 | O67: 0 | P67: 0 | Q67: 0 | R67: 0 | S67: 0 | T67: 0 | U67: 0 | V67: 0 | W67: 0 | X67: 0 | Y67: 0
D68: DevCo cash flows | G68: $m | H68: Terminal year | I68: TV multiple | L68: =SUM(L66:L67) -> 375 | M68: =SUM(M66:M67) -> 375 | N68: 375 | O68: 375 | P68: 375 | Q68: 375 | R68: 375 | S68: 375 | T68: 375 | U68: 375 | V68: 375 | W68: 375 | X68: 375 | Y68: 375
D69: Terminal value | G69: $m | H69: 5 | I69: 0 | L69: =IF(L$7=$H69,(SUMIFS($L68:$Y68,$L$7:$Y$7,$H69)*$I69),0) -> 0 | M69: =IF(N$7=$H69+1,(SUMIFS($L68:$Y68,$M$7:$Z$7,$H69+1)*$I69),0) -> 0 | N69: 0 | O69: 0 | P69: 0 | Q69: 0 | R69: 0 | S69: 0 | T69: 0 | U69: 0 | V69: 0 | W69: 0 | X69: 0 | Y69: 0
D70: Total pre-tax DevCo value creation | G70: $m | K70: -1e-07 | L70: =SUM(L68:L69)*--(M$7<=$H69+1) -> 375 | M70: 375 | N70: 375 | O70: 375 | P70: 375 | Q70: 0 | R70: 0 | S70: 0 | T70: 0 | U70: 0 | V70: 0 | W70: 0 | X70: 0 | Y70: 0
H71: Discount rate
D72: XNPV / Equity value of DevCo | G72: $m | H72: 0 | I72: =IF(H72=0,SUM(K70:Y70),IFERROR(XNPV(H72,K70:Y70,L4:Z4),0)) -> 1875
D74: Total equity value | G74: $m
D75: OpCo (operating assets) | G75: $m | K75: =K58 -> 1172.5 | L75: 1842.5 | M75: 2345 | N75: 2847.5 | O75: 3350 | P75: 3852.5 | Q75: 4355 | R75: 4857.5 | S75: 5360 | T75: 5862.5 | U75: 6365 | V75: 6867.5 | W75: 7370 | X75: 7872.5 | Y75: 8375
D76: OpCo (under-construction assets) | G76: $m | K76: =K59 -> 670 | L76: 502.5 | M76: 502.5 | N76: 502.5 | O76: 502.5 | P76: 502.5 | Q76: 502.5 | R76: 502.5 | S76: 502.5 | T76: 502.5 | U76: 502.5 | V76: 502.5 | W76: 502.5 | X76: 502.5 | Y76: 502.5
D77: DevCo | G77: $m | K77: =I72 -> 1875 | L77: =K77 -> 1875 | M77: =L77 -> 1875 | N77: 1875 | O77: 1875 | P77: 1875 | Q77: 1875 | R77: 1875 | S77: 1875 | T77: 1875 | U77: 1875 | V77: 1875 | W77: 1875 | X77: 1875 | Y77: 1875
D78: Total equity value | G78: $m | K78: =SUM(K75:K77) -> 3717.5 | L78: 4220 | M78: 4722.5 | N78: 5225 | O78: 5727.5 | P78: 6230 | Q78: 6732.5 | R78: 7235 | S78: 7737.5 | T78: 8240 | U78: 8742.5 | V78: 9245 | W78: 9747.5 | X78: 10250 | Y78: 10752.5
D80: Value split
D81: =D75:D78 -> OpCo (operating assets) | G81: % | K81: =IFERROR(K75/K$78,0) -> 0.3154001345 | L81: 0.4366113744 | M81: 0.496559026 | N81: 0.5449760766 | O81: 0.5848974247 | P81: 0.6183788122 | Q81: 0.6468622354 | R81: 0.6713890809 | S81: 0.69273021 | T81: 0.7114684466 | U81: 0.7280526165 | V81: 0.7428339643 | W81: 0.7560913055 | X81: 0.7680487805 | Y81: 0.7788886306
D82: OpCo (under-construction assets) | G82: % | K82: =IFERROR(K76/K$78,0) -> 0.1802286483 | L82: 0.1190758294 | M82: 0.1064055056 | N82: 0.09617224881 | O82: 0.08773461371 | P82: 0.08065810594 | Q82: 0.07463795024 | R82: 0.06945404285 | S82: 0.06494345719 | T82: 0.06098300971 | U82: 0.05747783815 | V82: 0.05435370471 | W82: 0.05155167992 | X82: 0.04902439024 | Y82: 0.04673331783
D83: DevCo | G83: % | K83: =IFERROR(K77/K$78,0) -> 0.5043712172 | L83: 0.4443127962 | M83: 0.3970354685 | N83: 0.3588516746 | O83: 0.3273679616 | P83: 0.3009630819 | Q83: 0.2784998143 | R83: 0.2591568763 | S83: 0.2423263328 | T83: 0.2275485437 | U83: 0.2144695453 | V83: 0.202812331 | W83: 0.1923570146 | X83: 0.1829268293 | Y83: 0.1743780516
D84: Total equity value | G84: % | K84: =IFERROR(K78/K$78,0) -> 1 | L84: 1 | M84: 1 | N84: 1 | O84: 1 | P84: 1 | Q84: 1 | R84: 1 | S84: 1 | T84: 1 | U84: 1 | V84: 1 | W84: 1 | X84: 1 | Y84: 1
A86: =" " ->  | E86: END OF SHEET

Sheet U.S. Renewables Project
B2: Illustrative U.S. Renewables Project Example
G4: NPV (US$k) | H4: IRR (%)
E5: Unlevered | G5: =K60 -> 22703.64984 | H5: =K59 -> 0.09637631573
E6: Levered | G6: =K120 -> 18504.02325 | H6: =K119 -> 0.1461024288
K7: Period | L7: 1 | M7: =L7+1 -> 2 | N7: =M7+1 -> 3 | O7: 4 | P7: 5 | Q7: 6 | R7: 7 | S7: 8 | T7: 9 | U7: 10 | V7: 11 | W7: 12 | X7: 13 | Y7: 14 | Z7: 15 | AA7: 16 | AB7: 17 | AC7: 18 | AD7: 19 | AE7: 20 | AF7: 21 | AG7: 22 | AH7: 23 | AI7: 24 | AJ7: 25 | AK7: 26 | AL7: 27 | AM7: 28 | AN7: 29 | AO7: 30 | AP7: 31 | AQ7: 32 | AR7: 33 | AS7: 34 | AT7: 35 | AU7: 36 | AV7: 37 | AW7: 38 | AX7: 39 | AY7: 40
A9: =" " ->  | B9: Project
B11: =Header_Number -> 1 | C11: P&L
D13: Generation
D14: Capacity | G14: MW | K14: 100 | L14: =K14 -> 100 | M14: =L14 -> 100 | N14: 100 | O14: 100 | P14: 100 | Q14: 100 | R14: 100 | S14: 100 | T14: 100 | U14: 100 | V14: 100 | W14: 100 | X14: 100 | Y14: 100 | Z14: 100 | AA14: 100 | AB14: 100 | AC14: =AB14 -> 100 | AD14: 100 | AE14: 100 | AF14: 100 | AG14: 100 | AH14: 100 | AI14: 100 | AJ14: 100 | AK14: 100 | AL14: 100 | AM14: 100 | AN14: 100 | AO14: 100 | AP14: 100 | AQ14: 100 | AR14: 100 | AS14: =AR14 -> 100 | AT14: 100 | AU14: 100 | AV14: 100 | AW14: 100 | AX14: 100 | AY14: 100
D15: Capacity Factor | G15: % | H15: Note: Average generation output / maximum generation capacity | K15: 0.3 | L15: =K15 -> 0.3 | M15: 0.3 | N15: 0.3 | O15: 0.3 | P15: 0.3 | Q15: 0.3 | R15: 0.3 | S15: 0.3 | T15: 0.3 | U15: 0.3 | V15: 0.3 | W15: 0.3 | X15: 0.3 | Y15: 0.3 | Z15: 0.3 | AA15: 0.3 | AB15: 0.3 | AC15: 0.3 | AD15: 0.3 | AE15: 0.3 | AF15: 0.3 | AG15: 0.3 | AH15: 0.3 | AI15: 0.3 | AJ15: 0.3 | AK15: 0.3 | AL15: 0.3 | AM15: 0.3 | AN15: 0.3 | AO15: 0.3 | AP15: 0.3 | AQ15: 0.3 | AR15: 0.3 | AS15: 0.3 | AT15: 0.3 | AU15: 0.3 | AV15: 0.3 | AW15: 0.3 | AX15: 0.3 | AY15: 0.3
D16: Annual production | G16: MWh / year | L16: =L14*L15*8760 -> 262800 | M16: 262800 | N16: 262800 | O16: 262800 | P16: 262800 | Q16: 262800 | R16: 262800 | S16: 262800 | T16: 262800 | U16: 262800 | V16: 262800 | W16: 262800 | X16: 262800 | Y16: 262800 | Z16: 262800 | AA16: 262800 | AB16: 262800 | AC16: 262800 | AD16: 262800 | AE16: 262800 | AF16: 262800 | AG16: 262800 | AH16: 262800 | AI16: 262800 | AJ16: 262800 | AK16: 262800 | AL16: 262800 | AM16: 262800 | AN16: 262800 | AO16: 262800 | AP16: 262800 | AQ16: 262800 | AR16: 262800 | AS16: 262800 | AT16: 262800 | AU16: 262800 | AV16: 262800 | AW16: 262800 | AX16: 262800 | AY16: 262800
D17: PPA Period | G17: Flag | L17: 1 | M17: 1 | N17: 1 | O17: 1 | P17: 1 | Q17: 1 | R17: 1 | S17: 1 | T17: 1 | U17: 1 | V17: 1 | W17: 1 | X17: 1 | Y17: 1 | Z17: 1 | AA17: 1 | AB17: 1 | AC17: 1 | AD17: 1 | AE17: 1 | AF17: 0 | AG17: 0 | AH17: 0 | AI17: 0 | AJ17: 0 | AK17: 0 | AL17: 0 | AM17: 0 | AN17: 0 | AO17: 0 | AP17: 0 | AQ17: 0 | AR17: 0 | AS17: 0 | AT17: 0 | AU17: 0 | AV17: 0 | AW17: 0 | AX17: 0 | AY17: 0
D19: Revenue | H19: Escalation
D20: Electricity Price | G20: $/MWh | H20: 0.025 | K20: 28 | L20: =$K20*(1+($H20*(1-L$17)))^L$7 -> 28 | M20: 28 | N20: 28 | O20: 28 | P20: 28 | Q20: 28 | R20: 28 | S20: 28 | T20: 28 | U20: 28 | V20: 28 | W20: 28 | X20: 28 | Y20: 28 | Z20: 28 | AA20: 28 | AB20: 28 | AC20: 28 | AD20: 28 | AE20: 28 | AF20: 47.02829184 | AG20: 48.20399913 | AH20: 49.40909911 | AI20: 50.64432659 | AJ20: 51.91043475 | AK20: 53.20819562 | AL20: 54.53840051 | AM20: 55.90186053 | AN20: 57.29940704 | AO20: 58.73189221 | AP20: 60.20018952 | AQ20: 61.70519426 | AR20: 63.24782411 | AS20: 64.82901972 | AT20: 66.44974521 | AU20: 68.11098884 | AV20: 69.81376356 | AW20: 71.55910765 | AX20: =$K20*(1+($H20*(1-AX$17)))^AX$7 -> 73.34808534 | AY20: =$K20*(1+($H20*(1-AY$17)))^AY$7 -> 75.18178747
D21: Renewable Energy Credit ('REC') Price | G21: $/MWh | H21: 0.025 | K21: 4 | L21: 4 | M21: 4 | N21: 4 | O21: 4 | P21: 4 | Q21: 4 | R21: 4 | S21: 4 | T21: 4 | U21: 4 | V21: 4 | W21: 4 | X21: 4 | Y21: 4 | Z21: 4 | AA21: 4 | AB21: 4 | AC21: 4 | AD21: 4 | AE21: 4 | AF21: 6.718327405 | AG21: 6.88628559 | AH21: 7.05844273 | AI21: 7.234903798 | AJ21: 7.415776393 | AK21: 7.601170803 | AL21: 7.791200073 | AM21: 7.985980075 | AN21: 8.185629577 | AO21: 8.390270316 | AP21: 8.600027074 | AQ21: 8.815027751 | AR21: 9.035403445 | AS21: 9.261288531 | AT21: 9.492820744 | AU21: 9.730141263 | AV21: 9.973394794 | AW21: 10.22272966 | AX21: 10.47829791 | AY21: 10.74025535
D23: Electricity Revenue | G23: US$'000 | K23: =K16*K20/1000 -> 0 | L23: =L16*L20/1000 -> 7358.4 | M23: 7358.4 | N23: 7358.4 | O23: 7358.4 | P23: 7358.4 | Q23: 7358.4 | R23: 7358.4 | S23: 7358.4 | T23: 7358.4 | U23: 7358.4 | V23: 7358.4 | W23: 7358.4 | X23: 7358.4 | Y23: 7358.4 | Z23: 7358.4 | AA23: 7358.4 | AB23: 7358.4 | AC23: 7358.4 | AD23: 7358.4 | AE23: 7358.4 | AF23: 12359.03509 | AG23: 12668.01097 | AH23: 12984.71125 | AI23: 13309.32903 | AJ23: 13642.06225 | AK23: 13983.11381 | AL23: 14332.69165 | AM23: 14691.00895 | AN23: 15058.28417 | AO23: 15434.74127 | AP23: 15820.60981 | AQ23: 16216.12505 | AR23: 16621.52818 | AS23: 17037.06638 | AT23: 17462.99304 | AU23: 17899.56787 | AV23: 18347.05706 | AW23: 18805.73349 | AX23: 19275.87683 | AY23: 19757.77375
D24: REC Revenue | G24: US$'000 | K24: =K16*K21/1000 -> 0 | L24: =L16*L21/1000 -> 1051.2 | M24: 1051.2 | N24: 1051.2 | O24: 1051.2 | P24: 1051.2 | Q24: 1051.2 | R24: 1051.2 | S24: 1051.2 | T24: 1051.2 | U24: 1051.2 | V24: 1051.2 | W24: 1051.2 | X24: 1051.2 | Y24: 1051.2 | Z24: 1051.2 | AA24: 1051.2 | AB24: 1051.2 | AC24: 1051.2 | AD24: 1051.2 | AE24: 1051.2 | AF24: 1765.576442 | AG24: 1809.715853 | AH24: 1854.958749 | AI24: 1901.332718 | AJ24: 1948.866036 | AK24: 1997.587687 | AL24: 2047.527379 | AM24: 2098.715564 | AN24: 2151.183453 | AO24: 2204.963039 | AP24: 2260.087115 | AQ24: 2316.589293 | AR24: 2374.504025 | AS24: 2433.866626 | AT24: 2494.713292 | AU24: 2557.081124 | AV24: 2621.008152 | AW24: 2686.533356 | AX24: 2753.69669 | AY24: 2822.539107
D25: Total Revenue | G25: US$'000 | K25: =K23+K24 -> 0 | L25: =L23+L24 -> 8409.6 | M25: 8409.6 | N25: 8409.6 | O25: 8409.6 | P25: 8409.6 | Q25: 8409.6 | R25: 8409.6 | S25: 8409.6 | T25: 8409.6 | U25: 8409.6 | V25: 8409.6 | W25: 8409.6 | X25: 8409.6 | Y25: 8409.6 | Z25: 8409.6 | AA25: 8409.6 | AB25: 8409.6 | AC25: 8409.6 | AD25: 8409.6 | AE25: 8409.6 | AF25: 14124.61154 | AG25: 14477.72683 | AH25: 14839.67 | AI25: 15210.66175 | AJ25: 15590.92829 | AK25: 15980.7015 | AL25: 16380.21903 | AM25: 16789.72451 | AN25: 17209.46762 | AO25: 17639.70431 | AP25: 18080.69692 | AQ25: 18532.71434 | AR25: 18996.0322 | AS25: 19470.93301 | AT25: 19957.70633 | AU25: 20456.64899 | AV25: 20968.06522 | AW25: 21492.26685 | AX25: 22029.57352 | AY25: 22580.31286
H26: Cost %
D27: Operating Costs | G27: US$'000 | H27: 0.25 | K27: =K25*$H$23 -> 0 | L27: =L25*$H$27 -> 2102.4 | M27: =L27*(1+$H20) -> 2154.96 | N27: =M27*(1+$H20) -> 2208.834 | O27: 2264.05485 | P27: 2320.656221 | Q27: 2378.672627 | R27: 2438.139442 | S27: 2499.092929 | T27: 2561.570252 | U27: 2625.609508 | V27: 2691.249746 | W27: 2758.530989 | X27: 2827.494264 | Y27: 2898.181621 | Z27: 2970.636161 | AA27: 3044.902065 | AB27: 3121.024617 | AC27: 3199.050232 | AD27: 3279.026488 | AE27: 3361.00215 | AF27: 3445.027204 | AG27: 3531.152884 | AH27: 3619.431706 | AI27: 3709.917499 | AJ27: 3802.665436 | AK27: 3897.732072 | AL27: 3995.175374 | AM27: 4095.054758 | AN27: 4197.431127 | AO27: 4302.366906 | AP27: 4409.926078 | AQ27: 4520.17423 | AR27: 4633.178586 | AS27: 4749.008051 | AT27: 4867.733252 | AU27: 4989.426583 | AV27: 5114.162248 | AW27: 5242.016304 | AX27: 5373.066712 | AY27: 5507.393379
D29: EBITDA/Operating Cash Flows | G29: US$'000 | K29: =K25-K27 -> 0 | L29: =L25-L27 -> 6307.2 | M29: 6254.64 | N29: 6200.766 | O29: 6145.54515 | P29: 6088.943779 | Q29: 6030.927373 | R29: 5971.460558 | S29: 5910.507071 | T29: 5848.029748 | U29: 5783.990492 | V29: 5718.350254 | W29: 5651.069011 | X29: 5582.105736 | Y29: 5511.418379 | Z29: 5438.963839 | AA29: 5364.697935 | AB29: 5288.575383 | AC29: 5210.549768 | AD29: 5130.573512 | AE29: 5048.59785 | AF29: 10679.58433 | AG29: 10946.57394 | AH29: 11220.23829 | AI29: 11500.74425 | AJ29: 11788.26285 | AK29: 12082.96942 | AL29: 12385.04366 | AM29: 12694.66975 | AN29: 13012.0365 | AO29: 13337.33741 | AP29: 13670.77084 | AQ29: 14012.54011 | AR29: 14362.85362 | AS29: 14721.92496 | AT29: 15089.97308 | AU29: 15467.22241 | AV29: 15853.90297 | AW29: 16250.25054 | AX29: 16656.50681 | AY29: 17072.91948
B31: =Header_Number -> 2 | C31: Capital Costs & Investment Tax Credits
D33: Construction cost per watt | G33: $/W | K33: 1
D34: Installed Cost | G34: US$'000 | H34: FMV Step-Up | K34: =K33*K14*1000 -> 100000
D35: Fair Market Value ('FMV') | G35: US$'000 | H35: 0.2 | K35: =(H35+1)*K34 -> 120000
D36: 'Step-Up' in value | G36: US$'000 | H36: ITC % of FMV | K36: =K35-K34 -> 20000
D37: Investment Tax Credit ('ITC') | G37: US$'000 | H37: 0.3 | K37: =K35*$H$37 -> 36000
D38: Depreciable Basis for Tax | G38: US$'000 | K38: =K35-(K37*0.5) -> 102000
B40: =Header_Number -> 3 | C40: Cash tax profile
D42: Income (i.e., EBITDA) | G42: US$'000 | K42: =K29 -> 0 | L42: 6307.2 | M42: 6254.64 | N42: 6200.766 | O42: 6145.54515 | P42: 6088.943779 | Q42: 6030.927373 | R42: 5971.460558 | S42: 5910.507071 | T42: 5848.029748 | U42: 5783.990492 | V42: 5718.350254 | W42: 5651.069011 | X42: 5582.105736 | Y42: 5511.418379 | Z42: 5438.963839 | AA42: 5364.697935 | AB42: 5288.575383 | AC42: 5210.549768 | AD42: 5130.573512 | AE42: 5048.59785 | AF42: 10679.58433 | AG42: 10946.57394 | AH42: 11220.23829 | AI42: 11500.74425 | AJ42: 11788.26285 | AK42: 12082.96942 | AL42: 12385.04366 | AM42: 12694.66975 | AN42: 13012.0365 | AO42: 13337.33741 | AP42: 13670.77084 | AQ42: 14012.54011 | AR42: 14362.85362 | AS42: 14721.92496 | AT42: 15089.97308 | AU42: 15467.22241 | AV42: 15853.90297 | AW42: 16250.25054 | AX42: 16656.50681 | AY42: 17072.91948
D43: Tax Depreciation | G43: US$'000 | H43: Note: Applies 5Y Modified Accelerated Cost Recovery System (MACRS) | K43: 0 | L43: 0.2 | M43: 0.32 | N43: 0.192 | O43: 0.1152 | P43: 0.1152 | Q43: 0.0576 | R43: 0 | S43: 0 | T43: 0 | U43: 0 | V43: 0 | W43: 0 | X43: 0 | Y43: 0 | Z43: 0 | AA43: 0 | AB43: 0 | AC43: 0 | AD43: 0 | AE43: 0 | AF43: 0 | AG43: 0 | AH43: 0 | AI43: 0 | AJ43: 0 | AK43: 0 | AL43: 0 | AM43: 0 | AN43: 0 | AO43: 0 | AP43: 0 | AQ43: 0 | AR43: 0 | AS43: 0 | AT43: 0 | AU43: 0 | AV43: 0 | AW43: 0 | AX43: 0 | AY43: 0
D44: Gain on Sale (i.e., Step-Up) | G44: US$'000 | K44: =K36 -> 20000 | L44: 0 | M44: 0 | N44: 0 | O44: 0 | P44: 0 | Q44: 0 | R44: 0 | S44: 0 | T44: 0 | U44: 0 | V44: 0 | W44: 0 | X44: 0 | Y44: 0 | Z44: 0 | AA44: 0 | AB44: 0 | AC44: 0 | AD44: 0 | AE44: 0 | AF44: 0 | AG44: 0 | AH44: 0 | AI44: 0 | AJ44: 0 | AK44: 0 | AL44: 0 | AM44: 0 | AN44: 0 | AO44: 0 | AP44: 0 | AQ44: 0 | AR44: 0 | AS44: 0 | AT44: 0 | AU44: 0 | AV44: 0 | AW44: 0 | AX44: 0 | AY44: 0
D45: Depreciation | G45: US$'000 | K45: 0 | L45: =-$K$38*L43 -> -20400 | M45: =-$K$38*M43 -> -32640 | N45: -19584 | O45: -11750.4 | P45: -11750.4 | Q45: -5875.2 | R45: 0 | S45: 0 | T45: 0 | U45: 0 | V45: 0 | W45: 0 | X45: 0 | Y45: 0 | Z45: 0 | AA45: 0 | AB45: 0 | AC45: 0 | AD45: 0 | AE45: 0 | AF45: 0 | AG45: 0 | AH45: 0 | AI45: 0 | AJ45: 0 | AK45: 0 | AL45: 0 | AM45: 0 | AN45: 0 | AO45: 0 | AP45: 0 | AQ45: 0 | AR45: 0 | AS45: 0 | AT45: 0 | AU45: 0 | AV45: 0 | AW45: 0 | AX45: 0 | AY45: 0
D46: Total Income | G46: US$'000 | H46: Tax rate % | K46: =K42+K44+K45 -> 20000 | L46: =L42+L44+L45 -> -14092.8 | M46: =M42+M44+M45 -> -26385.36 | N46: -13383.234 | O46: -5604.85485 | P46: -5661.456221 | Q46: 155.7273732 | R46: 5971.460558 | S46: 5910.507071 | T46: 5848.029748 | U46: 5783.990492 | V46: 5718.350254 | W46: 5651.069011 | X46: 5582.105736 | Y46: 5511.418379 | Z46: 5438.963839 | AA46: 5364.697935 | AB46: 5288.575383 | AC46: 5210.549768 | AD46: 5130.573512 | AE46: 5048.59785 | AF46: 10679.58433 | AG46: 10946.57394 | AH46: 11220.23829 | AI46: 11500.74425 | AJ46: 11788.26285 | AK46: 12082.96942 | AL46: 12385.04366 | AM46: 12694.66975 | AN46: 13012.0365 | AO46: 13337.33741 | AP46: 13670.77084 | AQ46: 14012.54011 | AR46: 14362.85362 | AS46: 14721.92496 | AT46: 15089.97308 | AU46: 15467.22241 | AV46: 15853.90297 | AW46: 16250.25054 | AX46: 16656.50681 | AY46: 17072.91948
D47: Cash Tax (Excluding ITC) | G47: US$'000 | H47: 0.21 | K47: =-K46*$H$47 -> -4200 | L47: =-L46*$H$47 -> 2959.488 | M47: 5540.9256 | N47: 2810.47914 | O47: 1177.019518 | P47: 1188.905806 | Q47: -32.70274838 | R47: -1254.006717 | S47: -1241.206485 | T47: -1228.086247 | U47: -1214.638003 | V47: -1200.853553 | W47: -1186.724492 | X47: -1172.242205 | Y47: -1157.39786 | Z47: -1142.182406 | AA47: -1126.586566 | AB47: -1110.60083 | AC47: -1094.215451 | AD47: -1077.420437 | AE47: -1060.205548 | AF47: -2242.71271 | AG47: -2298.780528 | AH47: -2356.250041 | AI47: -2415.156292 | AJ47: -2475.535199 | AK47: -2537.423579 | AL47: -2600.859169 | AM47: -2665.880648 | AN47: -2732.527664 | AO47: -2800.840856 | AP47: -2870.861877 | AQ47: -2942.633424 | AR47: -3016.199259 | AS47: -3091.604241 | AT47: -3168.894347 | AU47: -3248.116706 | AV47: -3329.319623 | AW47: -3412.552614 | AX47: -3497.866429 | AY47: -3585.31309
D48: Investment Tax Credit Value | G48: US$'000 | K48: 0 | L48: =K37 -> 36000 | M48: 0 | N48: 0 | O48: 0 | P48: 0 | Q48: 0 | R48: 0 | S48: 0 | T48: 0 | U48: 0 | V48: 0 | W48: 0 | X48: 0 | Y48: 0 | Z48: 0 | AA48: 0 | AB48: 0 | AC48: 0 | AD48: 0 | AE48: 0 | AF48: 0 | AG48: 0 | AH48: 0 | AI48: 0 | AJ48: 0 | AK48: 0 | AL48: 0 | AM48: 0 | AN48: 0 | AO48: 0 | AP48: 0 | AQ48: 0 | AR48: 0 | AS48: 0 | AT48: 0 | AU48: 0 | AV48: 0 | AW48: 0 | AX48: 0 | AY48: 0
D49: Cash Tax Benefit/(Detriment) | G49: US$'000 | K49: =K47+K48 -> -4200 | L49: =L47+L48 -> 38959.488 | M49: 5540.9256 | N49: 2810.47914 | O49: 1177.019518 | P49: 1188.905806 | Q49: -32.70274838 | R49: -1254.006717 | S49: -1241.206485 | T49: -1228.086247 | U49: -1214.638003 | V49: -1200.853553 | W49: -1186.724492 | X49: -1172.242205 | Y49: -1157.39786 | Z49: -1142.182406 | AA49: -1126.586566 | AB49: -1110.60083 | AC49: -1094.215451 | AD49: -1077.420437 | AE49: -1060.205548 | AF49: -2242.71271 | AG49: -2298.780528 | AH49: -2356.250041 | AI49: -2415.156292 | AJ49: -2475.535199 | AK49: -2537.423579 | AL49: -2600.859169 | AM49: -2665.880648 | AN49: -2732.527664 | AO49: -2800.840856 | AP49: -2870.861877 | AQ49: -2942.633424 | AR49: -3016.199259 | AS49: -3091.604241 | AT49: -3168.894347 | AU49: -3248.116706 | AV49: -3329.319623 | AW49: -3412.552614 | AX49: -3497.866429 | AY49: -3585.31309
B51: =Header_Number -> 4 | C51: Unlevered After-Tax Cash Flows
D53: Installed Cost | G53: US$'000 | K53: =-K34 -> -100000 | L53: 0 | M53: 0 | N53: 0 | O53: 0 | P53: 0 | Q53: 0 | R53: 0 | S53: 0 | T53: 0 | U53: 0 | V53: 0 | W53: 0 | X53: 0 | Y53: 0 | Z53: 0 | AA53: 0 | AB53: 0 | AC53: 0 | AD53: 0 | AE53: 0 | AF53: 0 | AG53: 0 | AH53: 0 | AI53: 0 | AJ53: 0 | AK53: 0 | AL53: 0 | AM53: 0 | AN53: 0 | AO53: 0 | AP53: 0 | AQ53: 0 | AR53: 0 | AS53: 0 | AT53: 0 | AU53: 0 | AV53: 0 | AW53: 0 | AX53: 0 | AY53: 0
D54: =D29 -> EBITDA/Operating Cash Flows | G54: US$'000 | K54: =K29 -> 0 | L54: 6307.2 | M54: 6254.64 | N54: 6200.766 | O54: 6145.54515 | P54: 6088.943779 | Q54: 6030.927373 | R54: 5971.460558 | S54: 5910.507071 | T54: 5848.029748 | U54: 5783.990492 | V54: 5718.350254 | W54: 5651.069011 | X54: 5582.105736 | Y54: 5511.418379 | Z54: 5438.963839 | AA54: 5364.697935 | AB54: 5288.575383 | AC54: 5210.549768 | AD54: 5130.573512 | AE54: 5048.59785 | AF54: 10679.58433 | AG54: 10946.57394 | AH54: 11220.23829 | AI54: 11500.74425 | AJ54: 11788.26285 | AK54: 12082.96942 | AL54: 12385.04366 | AM54: 12694.66975 | AN54: 13012.0365 | AO54: 13337.33741 | AP54: 13670.77084 | AQ54: 14012.54011 | AR54: 14362.85362 | AS54: 14721.92496 | AT54: 15089.97308 | AU54: 15467.22241 | AV54: 15853.90297 | AW54: 16250.25054 | AX54: 16656.50681 | AY54: 17072.91948
D55: Cash Tax (Excluding ITC) | G55: US$'000 | K55: =K47 -> -4200 | L55: 2959.488 | M55: 5540.9256 | N55: 2810.47914 | O55: 1177.019518 | P55: 1188.905806 | Q55: -32.70274838 | R55: -1254.006717 | S55: -1241.206485 | T55: -1228.086247 | U55: -1214.638003 | V55: -1200.853553 | W55: -1186.724492 | X55: -1172.242205 | Y55: -1157.39786 | Z55: -1142.182406 | AA55: -1126.586566 | AB55: -1110.60083 | AC55: -1094.215451 | AD55: -1077.420437 | AE55: -1060.205548 | AF55: -2242.71271 | AG55: -2298.780528 | AH55: -2356.250041 | AI55: -2415.156292 | AJ55: -2475.535199 | AK55: -2537.423579 | AL55: -2600.859169 | AM55: -2665.880648 | AN55: -2732.527664 | AO55: -2800.840856 | AP55: -2870.861877 | AQ55: -2942.633424 | AR55: -3016.199259 | AS55: -3091.604241 | AT55: -3168.894347 | AU55: -3248.116706 | AV55: -3329.319623 | AW55: -3412.552614 | AX55: -3497.866429 | AY55: -3585.31309
D56: ITC Value | G56: US$'000 | K56: 0 | L56: 36000 | M56: 0 | N56: 0 | O56: 0 | P56: 0 | Q56: 0 | R56: 0 | S56: 0 | T56: 0 | U56: 0 | V56: 0 | W56: 0 | X56: 0 | Y56: 0 | Z56: 0 | AA56: 0 | AB56: 0 | AC56: 0 | AD56: 0 | AE56: 0 | AF56: 0 | AG56: 0 | AH56: 0 | AI56: 0 | AJ56: 0 | AK56: 0 | AL56: 0 | AM56: 0 | AN56: 0 | AO56: 0 | AP56: 0 | AQ56: 0 | AR56: 0 | AS56: 0 | AT56: 0 | AU56: 0 | AV56: 0 | AW56: 0 | AX56: 0 | AY56: 0
D57: Net After Tax Cash Flows | G57: US$'000 | K57: =SUM(K53:K56) -> -104200 | L57: 45266.688 | M57: 11795.5656 | N57: 9011.24514 | O57: 7322.564669 | P57: 7277.849585 | Q57: 5998.224625 | R57: 4717.45384 | S57: 4669.300586 | T57: 4619.943501 | U57: 4569.352489 | V57: 4517.496701 | W57: 4464.344518 | X57: 4409.863531 | Y57: 4354.02052 | Z57: 4296.781433 | AA57: 4238.111368 | AB57: 4177.974553 | AC57: 4116.334316 | AD57: 4053.153074 | AE57: 3988.392301 | AF57: 8436.871623 | AG57: 8647.793413 | AH57: 8863.988249 | AI57: 9085.587955 | AJ57: 9312.727654 | AK57: 9545.545845 | AL57: 9784.184491 | AM57: 10028.7891 | AN57: 10279.50883 | AO57: 10536.49655 | AP57: 10799.90897 | AQ57: 11069.90669 | AR57: 11346.65436 | AS57: 11630.32072 | AT57: 11921.07873 | AU57: 12219.1057 | AV57: 12524.58334 | AW57: 12837.69793 | AX57: 13158.64038 | AY57: 13487.60639
D59: IRR | G59: % | H59: Discount rate | K59: =IRR(K57:AY57) -> 0.09637631573
D60: NPV | G60: US$'000 | H60: 0.07 | K60: =NPV($H$60,K57:AY57) -> 22703.64984
D61: NPV / kW | G61: US$/kW | K61: =K60/K14 -> 227.0364984
A63: =" " ->  | B63: Tax equity partnership
E64: Tax Equity Partnership - provides liquidity on federal tax credit and accelarated depreciation, necessary because tax benefits (losses and credits) exceed project level income years 1-5
P65: FLIP DATE >
B66: =Header_Number -> 5 | C66: Class A Member - Tax Equity
D68: Allocation of Income/Credits % | G68: % | K68: 0 | L68: 0.99 | M68: 0.67 | N68: 0.67 | O68: 0.67 | P68: 0.67 | Q68: 0.05 | R68: 0.05 | S68: 0.05 | T68: 0.05 | U68: 0.05 | V68: 0.05 | W68: 0.05 | X68: 0.05 | Y68: 0.05 | Z68: 0.05 | AA68: 0.05 | AB68: 0.05 | AC68: 0.05 | AD68: 0.05 | AE68: 0.05 | AF68: 0.05 | AG68: 0.05 | AH68: 0.05 | AI68: 0.05 | AJ68: 0.05 | AK68: 0.05 | AL68: 0.05 | AM68: 0.05 | AN68: 0.05 | AO68: 0.05 | AP68: 0.05 | AQ68: 0.05 | AR68: 0.05 | AS68: 0.05 | AT68: 0.05 | AU68: 0.05 | AV68: 0.05 | AW68: 0.05 | AX68: 0.05 | AY68: 0.05
D69: Allocation of Cash % | G69: % | K69: 0 | L69: 0.2 | M69: 0.2 | N69: 0.2 | O69: 0.2 | P69: 0.2 | Q69: 0.05 | R69: 0.05 | S69: 0.05 | T69: 0.05 | U69: 0.05 | V69: 0.05 | W69: 0.05 | X69: 0.05 | Y69: 0.05 | Z69: 0.05 | AA69: 0.05 | AB69: 0.05 | AC69: 0.05 | AD69: 0.05 | AE69: 0.05 | AF69: 0.05 | AG69: 0.05 | AH69: 0.05 | AI69: 0.05 | AJ69: 0.05 | AK69: 0.05 | AL69: 0.05 | AM69: 0.05 | AN69: 0.05 | AO69: 0.05 | AP69: 0.05 | AQ69: 0.05 | AR69: 0.05 | AS69: 0.05 | AT69: 0.05 | AU69: 0.05 | AV69: 0.05 | AW69: 0.05 | AX69: 0.05 | AY69: 0.05
D71: Allocation of Cash Tax/Credits | G71: US$'000 | K71: =K68*K49 -> 0 | L71: 38569.89312 | M71: 3712.420152 | N71: 1883.021024 | O71: 788.6030774 | P71: 796.5668903 | Q71: -1.635137419 | R71: -62.70033585 | S71: -62.06032425 | T71: -61.40431236 | U71: -60.73190017 | V71: -60.04267767 | W71: -59.33622461 | X71: -58.61211023 | Y71: -57.86989298 | Z71: -57.10912031 | AA71: -56.32932831 | AB71: -55.53004152 | AC71: -54.71077256 | AD71: -53.87102187 | AE71: -53.01027742 | AF71: -112.1356355 | AG71: -114.9390264 | AH71: -117.812502 | AI71: -120.7578146 | AJ71: -123.77676 | AK71: -126.871179 | AL71: -130.0429584 | AM71: -133.2940324 | AN71: -136.6263832 | AO71: -140.0420428 | AP71: -143.5430938 | AQ71: -147.1316712 | AR71: -150.809963 | AS71: -154.580212 | AT71: -158.4447173 | AU71: -162.4058353 | AV71: -166.4659812 | AW71: -170.6276307 | AX71: -174.8933215 | AY71: -179.2656545
D72: Allocation of Pre-Tax Cash Flow | G72: US$'000 | K72: =K69*K54 -> 0 | L72: 1261.44 | M72: 1250.928 | N72: 1240.1532 | O72: 1229.10903 | P72: 1217.788756 | Q72: 301.5463687 | R72: 298.5730279 | S72: 295.5253536 | T72: 292.4014874 | U72: 289.1995246 | V72: 285.9175127 | W72: 282.5534505 | X72: 279.1052868 | Y72: 275.570919 | Z72: 271.9481919 | AA72: 268.2348967 | AB72: 264.4287692 | AC72: 260.5274884 | AD72: 256.5286756 | AE72: 252.4298925 | AF72: 533.9792166 | AG72: 547.328697 | AH72: 561.0119145 | AI72: 575.0372123 | AJ72: 589.4131426 | AK72: 604.1484712 | AL72: 619.252183 | AM72: 634.7334876 | AN72: 650.6018248 | AO72: 666.8668704 | AP72: 683.5385421 | AQ72: 700.6270057 | AR72: 718.1426808 | AS72: 736.0962478 | AT72: 754.498654 | AU72: 773.3611204 | AV72: 792.6951484 | AW72: 812.5125271 | AX72: 832.8253403 | AY72: 853.6459738
D73: Total After-Tax Value to Tax Equity | G73: US$'000 | H73: Flip return | K73: =SUM(K71:K72) -> 0 | L73: =SUM(L71:L72) -> 39831.33312 | M73: 4963.348152 | N73: 3123.174224 | O73: 2017.712107 | P73: 2014.355646 | Q73: 299.9112312 | R73: 235.872692 | S73: 233.4650293 | T73: 230.9971751 | U73: 228.4676244 | V73: 225.874835 | W73: 223.2172259 | X73: 220.4931766 | Y73: 217.701026 | Z73: 214.8390716 | AA73: 211.9055684 | AB73: 208.8987276 | AC73: 205.8167158 | AD73: 202.6576537 | AE73: 199.4196151 | AF73: 421.8435811 | AG73: 432.3896707 | AH73: 443.1994124 | AI73: 454.2793977 | AJ73: 465.6363827 | AK73: 477.2772923 | AL73: 489.2092246 | AM73: 501.4394552 | AN73: 513.9754416 | AO73: 526.8248276 | AP73: 539.9954483 | AQ73: 553.4953345 | AR73: 567.3327179 | AS73: 581.5160358 | AT73: 596.0539367 | AU73: 610.9552851 | AV73: 626.2291672 | AW73: 641.8848964 | AX73: 657.9320188 | AY73: 674.3803193
D74: Resulting Tax Equity Invesment | G74: US$'000 | H74: 0.07 | L74: =NPV(H74,M73:P73)+L73 -> 50381.67396
B76: =Header_Number -> 6 | C76: Class B Member - Tax Equity
D78: Allocation of Income | G78: % | K78: =1-K68 -> 1 | L78: 0.01 | M78: 0.33 | N78: 0.33 | O78: 0.33 | P78: 0.33 | Q78: 0.95 | R78: 0.95 | S78: 0.95 | T78: 0.95 | U78: 0.95 | V78: 0.95 | W78: 0.95 | X78: 0.95 | Y78: 0.95 | Z78: 0.95 | AA78: 0.95 | AB78: 0.95 | AC78: 0.95 | AD78: 0.95 | AE78: 0.95 | AF78: 0.95 | AG78: 0.95 | AH78: 0.95 | AI78: 0.95 | AJ78: 0.95 | AK78: 0.95 | AL78: 0.95 | AM78: 0.95 | AN78: 0.95 | AO78: 0.95 | AP78: 0.95 | AQ78: 0.95 | AR78: 0.95 | AS78: 0.95 | AT78: 0.95 | AU78: 0.95 | AV78: 0.95 | AW78: 0.95 | AX78: 0.95 | AY78: 0.95
D79: Allocation of Credits | G79: % | K79: 1 | L79: 0.8 | M79: 0.8 | N79: 0.8 | O79: 0.8 | P79: 0.8 | Q79: 0.95 | R79: 0.95 | S79: 0.95 | T79: 0.95 | U79: 0.95 | V79: 0.95 | W79: 0.95 | X79: 0.95 | Y79: 0.95 | Z79: 0.95 | AA79: 0.95 | AB79: 0.95 | AC79: 0.95 | AD79: 0.95 | AE79: 0.95 | AF79: 0.95 | AG79: 0.95 | AH79: 0.95 | AI79: 0.95 | AJ79: 0.95 | AK79: 0.95 | AL79: 0.95 | AM79: 0.95 | AN79: 0.95 | AO79: 0.95 | AP79: 0.95 | AQ79: 0.95 | AR79: 0.95 | AS79: 0.95 | AT79: 0.95 | AU79: 0.95 | AV79: 0.95 | AW79: 0.95 | AX79: 0.95 | AY79: 0.95
D81: Allocation of Cash Tax/Credits | G81: US$'000 | K81: =K78*K49 -> -4200 | L81: 389.59488 | M81: 1828.505448 | N81: 927.4581162 | O81: 388.4164411 | P81: 392.3389161 | Q81: -31.06761096 | R81: -1191.306381 | S81: -1179.146161 | T81: -1166.681935 | U81: -1153.906103 | V81: -1140.810876 | W81: -1127.388268 | X81: -1113.630094 | Y81: -1099.527967 | Z81: -1085.073286 | AA81: -1070.257238 | AB81: -1055.070789 | AC81: -1039.504679 | AD81: -1023.549416 | AE81: -1007.195271 | AF81: -2130.577074 | AG81: -2183.841501 | AH81: -2238.437539 | AI81: -2294.398477 | AJ81: -2351.758439 | AK81: -2410.5524 | AL81: -2470.81621 | AM81: -2532.586615 | AN81: -2595.901281 | AO81: -2660.798813 | AP81: -2727.318783 | AQ81: -2795.501753 | AR81: -2865.389296 | AS81: -2937.024029 | AT81: -3010.44963 | AU81: -3085.71087 | AV81: -3162.853642 | AW81: -3241.924983 | AX81: -3322.973108 | AY81: -3406.047435
D82: Allocation of Pre-Tax Cash Flow | G82: US$'000 | K82: =K79*K54 -> 0 | L82: 5045.76 | M82: 5003.712 | N82: 4960.6128 | O82: 4916.43612 | P82: 4871.155023 | Q82: 5729.381005 | R82: 5672.88753 | S82: 5614.981718 | T82: 5555.628261 | U82: 5494.790967 | V82: 5432.432742 | W82: 5368.51556 | X82: 5303.000449 | Y82: 5235.84746 | Z82: 5167.015647 | AA82: 5096.463038 | AB82: 5024.146614 | AC82: 4950.022279 | AD82: 4874.044836 | AE82: 4796.167957 | AF82: 10145.60512 | AG82: 10399.24524 | AH82: 10659.22637 | AI82: 10925.70703 | AJ82: 11198.84971 | AK82: 11478.82095 | AL82: 11765.79148 | AM82: 12059.93626 | AN82: 12361.43467 | AO82: 12670.47054 | AP82: 12987.2323 | AQ82: 13311.91311 | AR82: 13644.71094 | AS82: 13985.82871 | AT82: 14335.47443 | AU82: 14693.86129 | AV82: 15061.20782 | AW82: 15437.73802 | AX82: 15823.68147 | AY82: 16219.2735
D83: Total After-Tax Value to Longroad | G83: US$'000 | K83: =K81+K82 -> -4200 | L83: =L81+L82 -> 5435.35488 | M83: 6832.217448 | N83: 5888.070916 | O83: 5304.852561 | P83: 5263.493939 | Q83: 5698.313394 | R83: 4481.581148 | S83: 4435.835557 | T83: 4388.946326 | U83: 4340.884864 | V83: 4291.621866 | W83: 4241.127292 | X83: 4189.370355 | Y83: 4136.319494 | Z83: 4081.942361 | AA83: 4026.2058 | AB83: 3969.075825 | AC83: 3910.517601 | AD83: 3850.495421 | AE83: 3788.972686 | AF83: 8015.028042 | AG83: 8215.403743 | AH83: 8420.788836 | AI83: 8631.308557 | AJ83: 8847.091271 | AK83: 9068.268553 | AL83: 9294.975267 | AM83: 9527.349648 | AN83: 9765.53339 | AO83: 10009.67172 | AP83: 10259.91352 | AQ83: 10516.41136 | AR83: 10779.32164 | AS83: 11048.80468 | AT83: 11325.0248 | AU83: 11608.15042 | AV83: 11898.35418 | AW83: 12195.81303 | AX83: 12500.70836 | AY83: 12813.22607
D85: Combined After-Cash Flow | G85: US$'000 | K85: =K73+K83 -> -4200 | L85: 45266.688 | M85: 11795.5656 | N85: 9011.24514 | O85: 7322.564669 | P85: 7277.849585 | Q85: 5998.224625 | R85: 4717.45384 | S85: 4669.300586 | T85: 4619.943501 | U85: 4569.352489 | V85: 4517.496701 | W85: 4464.344518 | X85: 4409.863531 | Y85: 4354.02052 | Z85: 4296.781433 | AA85: 4238.111368 | AB85: 4177.974553 | AC85: 4116.334316 | AD85: 4053.153074 | AE85: 3988.392301 | AF85: 8436.871623 | AG85: 8647.793413 | AH85: 8863.988249 | AI85: 9085.587955 | AJ85: 9312.727654 | AK85: 9545.545845 | AL85: 9784.184491 | AM85: 10028.7891 | AN85: 10279.50883 | AO85: 10536.49655 | AP85: 10799.90897 | AQ85: 11069.90669 | AR85: 11346.65436 | AS85: 11630.32072 | AT85: 11921.07873 | AU85: 12219.1057 | AV85: 12524.58334 | AW85: 12837.69793 | AX85: 13158.64038 | AY85: 13487.60639
D86: CHECK | G86: US$'000 | K86: =K85-K49-K54 -> 0 | L86: 0 | M86: 0 | N86: 0 | O86: 0 | P86: 0 | Q86: 0 | R86: 0 | S86: 0 | T86: 0 | U86: 0 | V86: 0 | W86: 0 | X86: 0 | Y86: 0 | Z86: 0 | AA86: 0 | AB86: 0 | AC86: 0 | AD86: 0 | AE86: 0 | AF86: 0 | AG86: 0 | AH86: 0 | AI86: 0 | AJ86: 0 | AK86: 0 | AL86: 0 | AM86: 0 | AN86: 0 | AO86: 0 | AP86: 0 | AQ86: 0 | AR86: 0 | AS86: 0 | AT86: 0 | AU86: 0 | AV86: 0 | AW86: 0 | AX86: 0 | AY86: 0
B88: =Header_Number -> 7 | C88: Net After-Tax Cash Flows to Longroad
D90: =D53 -> Installed Cost | G90: US$'000 | K90: =K53 -> -100000 | L90: 0 | M90: 0 | N90: 0 | O90: 0 | P90: 0 | Q90: 0 | R90: 0 | S90: 0 | T90: 0 | U90: 0 | V90: 0 | W90: 0 | X90: 0 | Y90: 0 | Z90: 0 | AA90: 0 | AB90: 0 | AC90: 0 | AD90: 0 | AE90: 0 | AF90: 0 | AG90: 0 | AH90: 0 | AI90: 0 | AJ90: 0 | AK90: 0 | AL90: 0 | AM90: 0 | AN90: 0 | AO90: 0 | AP90: 0 | AQ90: 0 | AR90: 0 | AS90: 0 | AT90: 0 | AU90: 0 | AV90: 0 | AW90: 0 | AX90: 0 | AY90: 0
D91: Tax Equity Investment | G91: US$'000 | K91: 0 | L91: =L74 -> 50381.67396 | M91: 0 | N91: 0 | O91: 0 | P91: 0 | Q91: 0 | R91: 0 | S91: 0 | T91: 0 | U91: 0 | V91: 0 | W91: 0 | X91: 0 | Y91: 0 | Z91: 0 | AA91: 0 | AB91: 0 | AC91: 0 | AD91: 0 | AE91: 0 | AF91: 0 | AG91: 0 | AH91: 0 | AI91: 0 | AJ91: 0 | AK91: 0 | AL91: 0 | AM91: 0 | AN91: 0 | AO91: 0 | AP91: 0 | AQ91: 0 | AR91: 0 | AS91: 0 | AT91: 0 | AU91: 0 | AV91: 0 | AW91: 0 | AX91: 0 | AY91: 0
D92: Class B Cash Flows | G92: US$'000 | K92: =K83 -> -4200 | L92: 5435.35488 | M92: 6832.217448 | N92: 5888.070916 | O92: 5304.852561 | P92: 5263.493939 | Q92: 5698.313394 | R92: 4481.581148 | S92: 4435.835557 | T92: 4388.946326 | U92: 4340.884864 | V92: 4291.621866 | W92: 4241.127292 | X92: 4189.370355 | Y92: 4136.319494 | Z92: 4081.942361 | AA92: 4026.2058 | AB92: 3969.075825 | AC92: 3910.517601 | AD92: 3850.495421 | AE92: 3788.972686 | AF92: 8015.028042 | AG92: 8215.403743 | AH92: 8420.788836 | AI92: 8631.308557 | AJ92: 8847.091271 | AK92: 9068.268553 | AL92: 9294.975267 | AM92: 9527.349648 | AN92: 9765.53339 | AO92: 10009.67172 | AP92: 10259.91352 | AQ92: 10516.41136 | AR92: 10779.32164 | AS92: 11048.80468 | AT92: 11325.0248 | AU92: 11608.15042 | AV92: 11898.35418 | AW92: 12195.81303 | AX92: 12500.70836 | AY92: 12813.22607
D93: Total Longroad Cash Flows | G93: US$'000 | K93: =SUM(K90:K92) -> -104200 | L93: =SUM(L90:L92) -> 55817.02884 | M93: 6832.217448 | N93: 5888.070916 | O93: 5304.852561 | P93: 5263.493939 | Q93: 5698.313394 | R93: 4481.581148 | S93: 4435.835557 | T93: 4388.946326 | U93: 4340.884864 | V93: 4291.621866 | W93: 4241.127292 | X93: 4189.370355 | Y93: 4136.319494 | Z93: 4081.942361 | AA93: 4026.2058 | AB93: 3969.075825 | AC93: 3910.517601 | AD93: 3850.495421 | AE93: 3788.972686 | AF93: 8015.028042 | AG93: 8215.403743 | AH93: 8420.788836 | AI93: 8631.308557 | AJ93: 8847.091271 | AK93: 9068.268553 | AL93: 9294.975267 | AM93: 9527.349648 | AN93: 9765.53339 | AO93: 10009.67172 | AP93: 10259.91352 | AQ93: 10516.41136 | AR93: 10779.32164 | AS93: 11048.80468 | AT93: 11325.0248 | AU93: 11608.15042 | AV93: 11898.35418 | AW93: 12195.81303 | AX93: 12500.70836 | AY93: 12813.22607
D94: IRR | G94: % | H94: Discount rate | K94: =IRR(K93:AY93) -> 0.09431718262
D95: NPV | G95: US$'000 | H95: 0.07 | K95: =NPV(H95,K93:AY93) -> 20004.88023
D96: NPV $/kW | G96: US$'000 | K96: =K95/K14 -> 200.0488023
B98: =Header_Number -> 8 | C98: Back Leverage
D100: Cash Flow Available after Tax Equity | G100: US$'000 | L100: =L54-L72 -> 5045.76 | M100: =M54-M72 -> 5003.712 | N100: 4960.6128 | O100: 4916.43612 | P100: 4871.155023 | Q100: 5729.381005 | R100: 5672.88753 | S100: 5614.981718 | T100: 5555.628261 | U100: 5494.790967 | V100: 5432.432742 | W100: 5368.51556 | X100: 5303.000449 | Y100: 5235.84746 | Z100: 5167.015647 | AA100: 5096.463038 | AB100: 5024.146614 | AC100: 4950.022279 | AD100: 4874.044836 | AE100: 4796.167957 | AF100: 10145.60512 | AG100: 10399.24524 | AH100: 10659.22637 | AI100: 10925.70703 | AJ100: 11198.84971 | AK100: 11478.82095 | AL100: 11765.79148 | AM100: 12059.93626 | AN100: 12361.43467 | AO100: 12670.47054 | AP100: 12987.2323 | AQ100: 13311.91311 | AR100: 13644.71094 | AS100: 13985.82871 | AT100: 14335.47443 | AU100: 14693.86129 | AV100: 15061.20782 | AW100: 15437.73802 | AX100: 15823.68147 | AY100: 16219.2735
D101: DSCR @ 1.35x | G101: US$'000 | H101: Interest % | L101: =L100/1.35 -> 3737.6 | M101: =M100/1.35 -> 3706.453333 | N101: 3674.528 | O101: 3641.804533 | P101: 3608.26298 | Q101: 4243.985929 | R101: 4202.138911 | S101: 4159.245717 | T101: 4115.280193 | U101: 4070.215531 | V101: 4024.024253 | W101: 3976.678193 | X101: 3928.148481 | Y101: 3878.405526 | Z101: 3827.418998 | AA101: 3775.157806 | AB101: 3721.590084 | AC101: 3666.68317 | AD101: 3610.403582 | AE101: 3552.717005 | AF101: 7515.263049 | AG101: 7703.144625 | AH101: 7895.723241 | AI101: 8093.116322 | AJ101: 8295.44423 | AK101: 8502.830336 | AL101: 8715.401094 | AM101: 8933.286121 | AN101: 9156.618274 | AO101: 9385.533731 | AP101: 9620.172074 | AQ101: 9860.676376 | AR101: 10107.19329 | AS101: 10359.87312 | AT101: 10618.86995 | AU101: 10884.34169 | AV101: 11156.45024 | AW101: 11435.36149 | AX101: 11721.24553 | AY101: 12014.27667
D102: Discount Factor | H102: 0.06 | L102: =1/(1+$H102)^L$7*L17 -> 0.9433962264 | M102: =1/(1+$H102)^M$7*M17 -> 0.88999644 | N102: 0.839619283 | O102: 0.7920936632 | P102: 0.7472581729 | Q102: 0.7049605404 | R102: 0.6650571136 | S102: 0.6274123713 | T102: 0.5918984635 | U102: 0.5583947769 | V102: 0.5267875254 | W102: 0.4969693636 | X102: 0.4688390222 | Y102: 0.4423009644 | Z102: 0.4172650607 | AA102: 0.3936462837 | AB102: 0.3713644186 | AC102: 0.3503437911 | AD102: 0.3305130105 | AE102: 0.3118047269 | AF102: 0 | AG102: 0 | AH102: 0 | AI102: 0 | AJ102: 0 | AK102: 0 | AL102: 0 | AM102: 0 | AN102: 0 | AO102: 0 | AP102: 0 | AQ102: 0 | AR102: 0 | AS102: 0 | AT102: 0 | AU102: 0 | AV102: 0 | AW102: 0 | AX102: 0 | AY102: 0
D104: BOP Balance | G104: US$'000 | L104: =SUMPRODUCT(L102:AY102,L101:AY101) -> 44299.62419 | M104: =L107 -> 43220.00164 | N104: =M107 -> 42106.74841 | O104: 40958.62531 | P104: 39774.3383 | Q104: 38552.53562 | R104: 36621.70183 | S104: 34616.86503 | T104: 32534.63121 | U104: 30371.42889 | V104: 28123.49909 | W104: 25786.88478 | X104: 23357.41968 | Y104: 20830.71638 | Z104: 18202.15383 | AA104: 15466.86407 | AB104: 12619.7181 | AC104: 9655.311106 | AD104: 6567.946603 | AE104: 3351.619816 | AF104: 0 | AG104: 0 | AH104: 0 | AI104: 0 | AJ104: 0 | AK104: 0 | AL104: 0 | AM104: 0 | AN104: 0 | AO104: 0 | AP104: 0 | AQ104: 0 | AR104: 0 | AS104: 0 | AT104: 0 | AU104: 0 | AV104: 0 | AW104: 0 | AX104: 0 | AY104: 0
D105: Interest | G105: US$'000 | L105: =$H$102*L104 -> 2657.977452 | M105: 2593.200099 | N105: 2526.404905 | O105: 2457.517519 | P105: 2386.460298 | Q105: 2313.152137 | R105: 2197.30211 | S105: 2077.011902 | T105: 1952.077873 | U105: 1822.285733 | V105: 1687.409945 | W105: 1547.213087 | X105: 1401.445181 | Y105: 1249.842983 | Z105: 1092.12923 | AA105: 928.011844 | AB105: 757.1830863 | AC105: 579.3186664 | AD105: 394.0767962 | AE105: 201.097189 | AF105: 0 | AG105: 0 | AH105: 0 | AI105: 0 | AJ105: 0 | AK105: 0 | AL105: 0 | AM105: 0 | AN105: 0 | AO105: 0 | AP105: 0 | AQ105: 0 | AR105: 0 | AS105: 0 | AT105: 0 | AU105: 0 | AV105: 0 | AW105: 0 | AX105: 0 | AY105: 0
D106: Principal | G106: US$'000 | L106: =MIN(L101-L105,L104) -> 1079.622548 | M106: 1113.253235 | N106: 1148.123095 | O106: 1184.287014 | P106: 1221.802682 | Q106: 1930.833792 | R106: 2004.836801 | S106: 2082.233815 | T106: 2163.202321 | U106: 2247.929798 | V106: 2336.614308 | W106: 2429.465106 | X106: 2526.7033 | Y106: 2628.562544 | Z106: 2735.289768 | AA106: =MIN(AA101-AA105,AA104) -> 2847.145962 | AB106: =MIN(AB101-AB105,AB104) -> 2964.406998 | AC106: 3087.364503 | AD106: 3216.326786 | AE106: 3351.619816 | AF106: 0 | AG106: 0 | AH106: 0 | AI106: 0 | AJ106: 0 | AK106: 0 | AL106: 0 | AM106: 0 | AN106: 0 | AO106: 0 | AP106: 0 | AQ106: 0 | AR106: 0 | AS106: 0 | AT106: 0 | AU106: 0 | AV106: 0 | AW106: 0 | AX106: 0 | AY106: 0
D107: EOP Balance | G107: US$'000 | L107: =L104-L106 -> 43220.00164 | M107: =M104-M106 -> 42106.74841 | N107: =N104-N106 -> 40958.62531 | O107: 39774.3383 | P107: 38552.53562 | Q107: 36621.70183 | R107: 34616.86503 | S107: 32534.63121 | T107: 30371.42889 | U107: 28123.49909 | V107: 25786.88478 | W107: 23357.41968 | X107: 20830.71638 | Y107: 18202.15383 | Z107: 15466.86407 | AA107: 12619.7181 | AB107: 9655.311106 | AC107: 6567.946603 | AD107: 3351.619816 | AE107: 0 | AF107: 0 | AG107: 0 | AH107: 0 | AI107: 0 | AJ107: 0 | AK107: 0 | AL107: 0 | AM107: 0 | AN107: 0 | AO107: 0 | AP107: 0 | AQ107: 0 | AR107: 0 | AS107: 0 | AT107: 0 | AU107: 0 | AV107: 0 | AW107: 0 | AX107: 0 | AY107: 0
B109: =Header_Number -> 9 | C109: Levered After Tax Cash Flows
D111: Installed Cost | G111: US$'000 | K111: =K90 -> -100000
D112: Construction Loan Borrow/(Repay) | G112: US$'000 | K112: =-K111*0.85 -> 85000 | L112: =-K112*(1+H102) -> -90100
D113: Tax Equity Investment | G113: US$'000 | L113: =L91 -> 50381.67396
D114: Term Loan Borrowing | G114: US$'000 | L114: =L104 -> 44299.62419
D115: Levered PT Cash Flows from Operations | G115: US$'000 | L115: =L100-L105-L106 -> 1308.16 | M115: 1297.258667 | N115: 1286.0848 | O115: 1274.631587 | P115: 1262.892043 | Q115: 1485.395075 | R115: 1470.748619 | S115: 1455.736001 | T115: 1440.348068 | U115: 1424.575436 | V115: 1408.408489 | W115: 1391.837367 | X115: 1374.851968 | Y115: 1357.441934 | Z115: 1339.596649 | AA115: 1321.305232 | AB115: 1302.55653 | AC115: 1283.339109 | AD115: 1263.641254 | AE115: 1243.450952 | AF115: 10145.60512 | AG115: 10399.24524 | AH115: 10659.22637 | AI115: 10925.70703 | AJ115: 11198.84971 | AK115: 11478.82095 | AL115: 11765.79148 | AM115: 12059.93626 | AN115: 12361.43467 | AO115: 12670.47054 | AP115: 12987.2323 | AQ115: 13311.91311 | AR115: 13644.71094 | AS115: 13985.82871 | AT115: 14335.47443 | AU115: 14693.86129 | AV115: 15061.20782 | AW115: 15437.73802 | AX115: 15823.68147 | AY115: 16219.2735
D116: Unlevered Cash Taxes to Class B | G116: US$'000 | K116: =K81 -> -4200 | L116: 389.59488 | M116: 1828.505448 | N116: 927.4581162 | O116: 388.4164411 | P116: 392.3389161 | Q116: -31.06761096 | R116: -1191.306381 | S116: -1179.146161 | T116: -1166.681935 | U116: -1153.906103 | V116: -1140.810876 | W116: -1127.388268 | X116: -1113.630094 | Y116: -1099.527967 | Z116: -1085.073286 | AA116: -1070.257238 | AB116: -1055.070789 | AC116: -1039.504679 | AD116: -1023.549416 | AE116: -1007.195271 | AF116: -2130.577074 | AG116: -2183.841501 | AH116: -2238.437539 | AI116: -2294.398477 | AJ116: -2351.758439 | AK116: -2410.5524 | AL116: -2470.81621 | AM116: -2532.586615 | AN116: -2595.901281 | AO116: -2660.798813 | AP116: -2727.318783 | AQ116: -2795.501753 | AR116: -2865.389296 | AS116: -2937.024029 | AT116: -3010.44963 | AU116: -3085.71087 | AV116: -3162.853642 | AW116: -3241.924983 | AX116: -3322.973108 | AY116: -3406.047435
D117: Interest Tax Shield | G117: US$'000 | L117: =L105*$H47 -> 558.1752648 | M117: =M105*$H47 -> 544.5720207 | N117: 530.54503 | O117: 516.078679 | P117: 501.1566626 | Q117: 485.7619488 | R117: 461.433443 | S117: 436.1724993 | T117: 409.9363532 | U117: 382.680004 | V117: 354.3560885 | W117: 324.9147483 | X117: 294.3034879 | Y117: 262.4670264 | Z117: 229.3471383 | AA117: 194.8824872 | AB117: 159.0084481 | AC117: 121.6569199 | AD117: 82.75612719 | AE117: 42.23040969 | AF117: 0 | AG117: 0 | AH117: 0 | AI117: 0 | AJ117: 0 | AK117: 0 | AL117: 0 | AM117: 0 | AN117: 0 | AO117: 0 | AP117: 0 | AQ117: 0 | AR117: 0 | AS117: 0 | AT117: 0 | AU117: 0 | AV117: 0 | AW117: 0 | AX117: 0 | AY117: 0
D118: After-Tax Levered Cash Flow to Longroad | G118: US$'000 | K118: =SUM(K111:K117) -> -19200 | L118: 6837.2283 | M118: 3670.336135 | N118: 2744.087946 | O118: 2179.126707 | P118: 2156.387622 | Q118: 1940.089413 | R118: 740.8756806 | S118: 712.7623395 | T118: 683.6024861 | U118: 653.3493368 | V118: 621.9537014 | W118: 589.3638481 | X118: 555.5253619 | Y118: 520.3809938 | Z118: 483.8705017 | AA118: 445.9304813 | AB118: 406.4941887 | AC118: 365.4913507 | AD118: 322.8479654 | AE118: 278.4860905 | AF118: =SUM(AF111:AF117) -> 8015.028042 | AG118: 8215.403743 | AH118: 8420.788836 | AI118: 8631.308557 | AJ118: 8847.091271 | AK118: 9068.268553 | AL118: 9294.975267 | AM118: 9527.349648 | AN118: 9765.53339 | AO118: 10009.67172 | AP118: 10259.91352 | AQ118: 10516.41136 | AR118: 10779.32164 | AS118: 11048.80468 | AT118: 11325.0248 | AU118: 11608.15042 | AV118: 11898.35418 | AW118: 12195.81303 | AX118: 12500.70836 | AY118: 12813.22607
D119: IRR | G119: % | H119: Discount rate | K119: =IRR(K118:AY118) -> 0.1461024288
D120: NPV | G120: US$'000 | H120: 0.08 | K120: =NPV(H120,K118:AY118) -> 18504.02325
D121: NPV $/kW | G121: US$/kW | K121: =K120/K14 -> 185.0402325
A123: =" " ->  | E123: END OF SHEET

Sheet Styles (hidden)
B2: Styles
B4: Sheet check
B5: Overall check
B10: =Header_Number -> 1 | C10: Styles
F13: Blank | J13: Intentionally left blank
F15: Check (summ.) | H15: 0 | J15: Check summary for rows, columns etc
F17: Check (indiv) | H17: 1 | J17: Check for individual cells or periods
F19: Flag | H19: 0
F21: Heading 1 | H21: Heading 1
F23: Heading 2 | H23: Heading 2
F25: Heading 3 | H25: Heading 3
F27: Input | H27: 100
F29: Input (calculated) | H29: 100
F31: Macro Copy | H31: Macro_Copy
F33: Macro Paste | H33: Macro_Paste
F35: Nominal total | H35: 100 | J35: Nominal totals for rows or columns
F37: Offsheet | H37: 100
F39: Range name | H39: Range_name | J39: Name of the named range
F41: Reference | H41: 25 | J41: Source reference
F43: Selected Scenario | H43: 100
F45: Sheet Title | H45: Tab
F47: Table Header | H47: lorem ipsum
F49: Unique | H49: Unique
F51: Unit | H51: lorem ipsum
B53: =Header_Number -> 2 | C53: Number Fomats
F55: Check | H55: 1
F56: Comma [0] | H56: 1000
F57: Comma | H57: 1000 | J57: 2dp
F58: Currency | H58: 100
F59: Currency [0] | H59: 100
F60: Date | H60: 2019-01-01
F61: Year | H61: 2019
F62: Multiplier / ratio | H62: 1.1
F63: Index | H63: 1.0025
F64: Percentage | H64: 1
F65: Percentage (2dp) | H65: 1
F66: Switch (On / Off) | H66: 1
F67: Switch (Yes / No) | H67: 0
